bitfinex/quotes_ETHUSD_20240822
["timestamp","ask_amount","ask_price","bid_price","bid_amount"]
[1724339418589,3.0499,2612.8,2612.1,0.40014046]
[1724339418750,3.0499,2612.8,2611.6,7.38]
[1724339418954,3.0499,2612.8,2611.7,1.33102978]
[1724339419146,3.0499,2612.8,2612.0,0.40017333]
[1724339419363,3.0499,2612.8,2611.6,8.51803115]
[1724339419591,3.0499,2612.8,2612.0,0.40017649]
[1724339419787,3.0499,2612.8,2611.7,3.0]
[1724339419956,3.0499,2612.8,2611.7,4.23173398]
[1724339420160,3.0499,2612.8,2612.0,0.40016671]
[1724339420872,4.498,2612.8,2612.0,0.40016671]
[1724339421057,2.3045,2612.7,2612.0,0.40016671]
[1724339421258,4.498,2612.8,2612.0,0.40016671]
[1724339421259,2.8545,2612.6,2612.0,0.40016671]
[1724339421461,2.3045,2612.6,2612.0,0.40016671]
[1724339421775,2.8545,2612.5,2611.8,0.40020023]
[1724339422604,2.8545,2612.5,2611.3,3.0]
[1724339422893,2.4326,2612.3,2611.4,0.40025224]
[1724339423040,0.55,2612.2,2611.4,0.40025224]
[1724339423245,2.4326,2612.1,2611.4,0.40025224]
[1724339425878,0.55,2612.0,2611.4,0.40025224]
[1724339426190,2.2694,2612.0,2611.4,0.40025224]
[1724339426520,3.948,2611.6,2611.4,0.40025224]
[1724339426649,2.4395,2611.5,2610.1,2.3623]
[1724339426855,2.4395,2611.2,2610.3,0.39981165]
[1724339428460,2.2565,2611.0,2610.3,0.39981165]
[1724339435095,2.2565,2611.0,2609.9,3.0]
[1724339435303,2.2565,2611.0,2610.0,0.6948]
[1724339435479,2.2565,2611.0,2610.0,1.09466885]
[1724339436716,7.39,2611.3,2610.0,1.09466885]
[1724339436717,2.4319,2610.8,2610.0,0.39986885]
[1724339438811,2.4319,2610.8,2610.0,3.79514732]
[1724339439028,2.4319,2610.8,2610.0,3.39986885]
[1724339439919,2.4319,2610.8,2610.0,0.39986885]
[1724339443023,7.39,2611.0,2610.2,2.4783]
[1724339443351,7.39,2611.0,2610.3,0.68981897]
[1724339443653,7.39,2611.0,2610.3,3.68981897]
[1724339444252,7.39,2611.0,2610.3,0.68981897]
[1724339446967,7.39,2611.0,2610.1,0.39989466]
[1724339446968,2.3647,2610.9,2610.1,0.39989466]
[1724339447444,7.39,2611.0,2610.2,2.2579]
[1724339447639,2.3647,2611.5,2610.4,3.948]
[1724339447873,2.3647,2611.5,2610.7,3.948]
[1724339448082,2.3647,2611.5,2610.8,3.0]
[1724339448771,2.3963,2612.7,2611.0,3.948]
[1724339449069,2.3963,2612.7,2611.1,3.0]
[1724339449242,2.3963,2612.7,2611.2,0.6948]
[1724339449925,2.3963,2612.7,2611.3,6.3539]
[1724339450131,2.3963,2612.7,2611.4,3.0]
[1724339450956,2.3963,2612.7,2611.6,3.948]
[1724339451331,2.3963,2612.7,2611.4,3.0]
[1724339451535,2.3963,2612.7,2611.5,0.93539]
[1724339454577,2.3963,2612.7,2611.6,6.3887]
[1724339454779,2.3963,2612.7,2611.7,3.0]
[1724339457611,2.3963,2612.7,2611.6,2.281]
[1724339457795,2.3963,2612.7,2611.6,5.281]
[1724339458135,2.3963,2612.7,2611.7,0.621639]
[1724339458433,2.3963,2612.7,2611.7,3.621639]
[1724339461122,2.3963,2612.7,2611.9,3.948]
[1724339461278,2.3963,2612.7,2612.0,3.0]
[1724339461877,2.3963,2612.7,2611.7,3.621639]
[1724339462078,2.3963,2612.7,2611.8,3.0]
[1724339462277,2.3963,2612.7,2611.8,0.3621639]
[1724339462522,2.3963,2612.7,2611.5,0.93539]
[1724339463285,2.3963,2612.7,2611.6,3.948]
[1724339463484,2.3963,2612.7,2611.7,5.2519]
[1724339466108,2.3963,2612.7,2611.7,3.0]
[1724339466317,2.3963,2612.7,2611.6,3.0]
[1724339466498,2.3963,2612.7,2611.8,3.948]
[1724339466824,2.3963,2612.7,2611.9,3.0]
[1724339467543,2.3963,2612.7,2612.1,3.948]
[1724339467698,2.3963,2612.7,2612.2,3.0]
[1724339469346,2.3963,2612.7,2612.0,5.4561]
[1724339469555,2.3963,2612.7,2612.1,1.28361]
[1724339469858,2.3963,2612.7,2612.1,4.28361]
[1724339470218,2.3963,2612.7,2612.1,1.28361]
[1724339474965,2.3963,2612.7,2612.0,3.0]
[1724339477421,2.3963,2612.7,2611.9,7.38]
[1724339477622,2.4024,2612.5,2611.9,7.38]
[1724339478362,0.55,2612.4,2611.0,11.328]
[1724339478568,2.4633,2612.3,2611.1,1.1328]
[1724339478766,2.4633,2612.1,2611.1,0.40003279]
[1724339479138,2.4633,2611.9,2611.1,0.40003279]
[1724339484507,2.4633,2611.9,2611.1,3.40003279]
[1724339485502,2.4633,2611.9,2611.2,3.0]
[1724339485695,2.4633,2611.9,2611.1,0.40003279]
[1724339489607,2.4633,2611.9,2610.7,3.0]
[1724339489810,2.4633,2611.9,2610.8,1.038]
[1724339490239,3.948,2611.8,2610.7,0.3998418]
[1724339490443,2.826,2611.7,2610.2,7.73947769]
[1724339490603,2.826,2611.7,2610.2,7.38]
[1724339490799,2.826,2611.7,2610.5,0.39987389]
[1724339492328,2.826,2611.7,2610.0,3.35949286]
[1724339492539,2.826,2611.7,2610.1,1.35363993]
[1724339492540,2.4078,2611.3,2610.1,1.35363993]
[1724339492705,3.0421,2611.2,2610.1,1.75328709]
[1724339492903,3.0421,2611.2,2610.1,0.39964716]
[1724339493145,2.4921,2610.6,2610.1,0.39964716]
[1724339493347,2.4921,2610.6,2609.1,0.79930866]
[1724339493532,2.4876,2610.5,2609.5,0.39972988]
[1724339493720,2.4876,2610.5,2609.2,3.948]
[1724339494121,2.4876,2610.5,2609.5,0.39970807]
[1724339498210,2.4876,2610.5,2609.5,0.73967888]
[1724339500233,3.948,2610.9,2609.5,0.39970807]
[1724339500234,2.828,2610.4,2609.5,0.39970807]
[1724339500870,2.828,2610.4,2609.0,3.0]
[1724339501301,2.828,2610.4,2608.7,2.29483128]
[1724339501302,2.278,2610.1,2609.1,0.39958203]
[1724339501797,2.2849,2609.9,2609.1,0.39958203]
[1724339502116,2.2849,2609.7,2609.1,0.39958203]
[1724339503972,2.2849,2609.7,2609.2,0.3399582]
[1724339506983,2.2849,2609.7,2609.2,4.2879582]
[1724339507280,2.4079,2610.1,2609.2,4.2879582]
[1724339507510,2.4079,2610.1,2609.3,3.0]
[1724339507784,2.4079,2610.1,2609.4,0.72879582]
[1724339516083,2.3674,2610.8,2609.9,3.948]
[1724339516414,2.3674,2611.1,2610.1,2.3765]
[1724339516615,2.3674,2611.1,2610.2,0.53765]
[1724339517617,2.3674,2611.1,2610.2,4.36876]
[1724339517935,2.3674,2611.1,2610.7,3.83035]
[1724339518435,2.3674,2611.1,2610.7,7.66066]
[1724339518621,2.3674,2611.1,2610.7,3.83031]
[1724339519502,11.21967,2611.2,2610.4,3.83075]
[1724339519503,2.2633,2610.9,2610.4,3.83075]
[1724339519699,3.82998,2611.0,2610.5,3.83066]
[1724339519903,2.8133,2610.9,2610.5,3.83066]
[1724339520212,2.8133,2610.9,2610.4,3.83074]
[1724339520620,2.8133,2610.9,2610.5,3.83059]
[1724339521943,2.8133,2610.9,2610.4,3.83074]
[1724339522145,4.38009,2610.9,2610.4,3.83074]
[1724339522324,2.2683,2610.8,2610.4,3.83073]
[1724339522531,2.2683,2610.8,2610.5,3.83058]
[1724339523401,0.55,2610.7,2610.4,3.83073]
[1724339523601,2.3933,2610.6,2610.4,3.83073]
[1724339523801,2.3933,2610.6,2610.2,3.83109]
[1724339524105,2.3933,2610.4,2610.2,3.83109]
[1724339524713,2.3933,2610.4,2610.0,3.83127]
[1724339525040,4.38048,2610.7,2610.0,3.83127]
[1724339525041,2.3933,2610.2,2610.0,3.83133]
[1724339525251,2.3933,2610.2,2609.9,3.83156]
[1724339525602,2.3933,2610.2,2609.8,7.66324]
[1724339525927,2.3933,2610.2,2609.8,7.66323]
[1724339526126,2.3933,2610.2,2609.8,3.83161]
[1724339526526,2.3933,2610.2,2609.9,3.83154]
[1724339527103,2.3933,2610.2,2609.8,3.83161]
[1724339527304,2.3933,2610.2,2609.8,7.66323]
[1724339527544,2.3933,2610.2,2609.9,3.83155]
[1724339527700,2.3933,2610.2,2609.8,3.83161]
[1724339528104,2.3933,2610.2,2609.8,7.66321]
[1724339528406,2.3933,2610.2,2609.9,3.83155]
[1724339528999,2.3933,2610.2,2610.0,3.8314]
[1724339530040,2.3933,2610.2,2610.1,3.83127]
[1724339531151,2.4556,2610.7,2610.3,7.66183]
[1724339531301,0.55,2610.6,2610.3,3.83088]
[1724339531842,2.4556,2610.5,2610.2,3.83111]
[1724339533467,2.4556,2610.5,2610.4,3.83083]
[1724339533660,9.7672,2610.8,2610.6,3.83043]
[1724339535428,2.3772,2610.8,2610.4,7.66146]
[1724339535628,2.3772,2610.8,2610.4,3.83071]
[1724339536063,2.3772,2610.8,2610.4,7.66145]
[1724339536367,2.3772,2610.8,2610.4,3.83071]
[1724339536770,2.3772,2610.8,2610.4,7.66146]
[1724339537069,2.3772,2610.8,2610.4,3.83071]
[1724339537266,2.3772,2610.8,2610.4,7.66146]
[1724339537428,2.3772,2610.8,2610.4,3.83071]
[1724339537830,2.3772,2610.8,2610.4,7.66147]
[1724339538325,2.3772,2610.8,2610.5,3.83067]
[1724339538990,2.3848,2611.1,2610.9,3.82998]
[1724339539290,2.3848,2611.1,2610.8,3.83023]
[1724339543347,2.3848,2611.1,2610.8,3.83015]
[1724339543786,2.3848,2611.1,2610.9,3.83008]
[1724339544006,2.3848,2611.1,2610.8,3.83022]
[1724339545755,2.3848,2611.1,2610.8,3.83014]
[1724339546755,2.3848,2611.1,2610.9,3.83006]
[1724339548821,2.3848,2611.1,2610.8,3.83014]
[1724339549706,2.3848,2611.1,2610.8,7.6603]
[1724339550030,2.3848,2611.1,2610.9,3.83008]
[1724339550501,2.3848,2611.1,2610.9,3.82995]
[1724339550848,2.3848,2611.1,2611.0,3.82995]
[1724339552733,2.3848,2611.1,2610.9,3.83009]
[1724339554033,2.3848,2611.1,2610.8,3.83023]
[1724339554610,2.3848,2611.1,2610.8,3.83017]
[1724339554839,2.3848,2611.1,2610.9,3.83009]
[1724339556645,2.3848,2611.1,2611.0,3.82995]
[1724339557434,7.39,2611.5,2611.4,3.82936]
[1724339557648,2.3495,2611.8,2611.5,3.82917]
[1724339557962,2.3495,2611.8,2611.7,3.82892]
[1724339558168,2.3495,2612.2,2612.1,3.82833]
[1724339558725,2.3495,2612.4,2612.1,3.82833]
[1724339559263,2.3495,2612.4,2611.9,3.82853]
[1724339559648,2.3495,2612.4,2611.9,7.65708]
[1724339559979,2.3495,2612.4,2611.9,3.82852]
[1724339560265,2.3495,2612.4,2612.0,3.82847]
[1724339560869,0.55,2612.3,2612.0,3.82847]
[1724339561852,0.55,2612.3,2611.8,3.82863]
[1724339562233,0.55,2612.3,2611.9,3.82858]
[1724339562641,0.55,2612.3,2611.9,7.65713]
[1724339562839,0.55,2612.3,2611.9,3.82855]
[1724339563537,0.55,2612.3,2612.1,3.82832]
[1724339565155,0.55,2612.3,2612.0,3.82838]
[1724339565548,2.3495,2612.4,2612.2,3.82819]
[1724339566982,2.3495,2612.4,2612.0,7.65673]
[1724339567145,2.3495,2612.4,2612.0,3.82834]
[1724339568245,2.3495,2612.4,2612.0,7.65674]
[1724339568639,2.3495,2612.4,2612.0,3.82834]
[1724339568847,2.3495,2612.4,2612.0,7.65674]
[1724339569088,2.3495,2612.4,2612.0,3.82834]
[1724339569389,2.3495,2612.4,2612.1,3.82833]
[1724339571260,2.3495,2612.4,2612.0,3.82846]
[1724339572893,2.3495,2612.4,2612.1,3.82831]
[1724339573386,11.21747,2612.7,2612.4,3.82782]
[1724339573387,9.6888,2612.7,2612.4,3.82782]
[1724339573770,9.6888,2612.7,2612.3,3.82803]
[1724339573973,7.65561,2612.5,2612.0,3.82837]
[1724339574191,7.65558,2612.5,2612.0,3.82837]
[1724339574375,3.82811,2612.3,2611.8,3.82868]
[1724339574887,7.65623,2612.3,2611.8,3.82868]
[1724339575048,3.82811,2612.3,2611.8,3.82868]
[1724339575882,3.82811,2612.3,2611.8,7.65734]
[1724339576208,3.82811,2612.3,2611.9,3.82861]
[1724339577091,2.3482,2612.4,2611.9,3.82861]
[1724339577252,0.55,2612.3,2611.9,3.82861]
[1724339577771,0.55,2612.3,2612.0,3.82847]
[1724339578115,2.3218,2612.6,2612.2,3.82807]
[1724339578763,2.3218,2612.6,2612.1,3.82824]
[1724339578962,6.14941,2612.6,2612.1,3.82824]
[1724339579173,6.14944,2612.6,2612.1,3.82824]
[1724339579766,3.82775,2612.5,2612.1,3.82824]
[1724339580176,3.82797,2612.4,2611.9,3.82852]
[1724339580381,3.82809,2612.3,2611.8,3.82877]
[1724339580597,2.4749,2612.2,2611.8,3.82877]
[1724339581412,2.4749,2612.2,2611.4,3.82927]
[1724339581413,3.82851,2612.0,2611.4,3.82927]
[1724339581579,3.82851,2612.0,2611.6,3.82906]
[1724339581900,7.6571,2612.0,2611.4,4.512177]
[1724339582114,0.55,2612.1,2611.2,3.82952]
[1724339582115,3.82894,2611.7,2611.2,3.82952]
[1724339582267,3.82889,2611.8,2611.2,7.65907]
[1724339582465,0.55,2611.7,2611.3,3.8295]
[1724339582699,6.31392,2612.1,2611.5,3.82919]
[1724339582884,6.31392,2612.1,2611.6,3.82906]
[1724339583488,2.4855,2612.1,2611.7,3.82891]
[1724339583695,6.31385,2612.1,2611.6,3.82906]
[1724339584868,6.31385,2612.1,2611.4,7.65862]
[1724339585401,4.37856,2612.0,2611.4,3.82925]
[1724339585722,4.37856,2612.0,2611.4,4.2887652]
[1724339586022,0.55,2612.0,2611.4,4.2887652]
[1724339586366,0.55,2612.0,2611.6,3.82903]
[1724339587370,0.55,2612.0,2611.4,3.82925]
[1724339587682,2.3924,2611.8,2611.2,3.82956]
[1724339587880,4.37892,2611.7,2610.7,2.4232]
[1724339588095,4.37892,2611.7,2610.9,3.83002]
[1724339588096,3.82931,2611.5,2610.9,3.83002]
[1724339588477,0.55,2611.4,2610.9,7.66004]
[1724339588842,0.55,2611.4,2611.0,3.82986]
[1724339589918,2.2992,2611.3,2610.9,3.83]
[1724339590136,2.2992,2611.3,2611.0,3.82987]
[1724339590445,2.2992,2611.3,2610.9,3.83003]
[1724339591632,2.2992,2611.3,2610.8,3.8301]
[1724339591833,2.2992,2611.3,2610.9,3.83008]
[1724339592039,2.2992,2611.3,2610.8,3.8301]
[1724339592207,6.12879,2611.3,2610.6,3.83043]
[1724339592404,4.37973,2611.2,2610.6,7.66082]
[1724339592636,4.37973,2611.2,2610.6,3.83039]
[1724339592824,4.37973,2611.2,2610.7,3.83037]
[1724339593224,4.37973,2611.2,2610.6,3.83039]
[1724339593428,0.55,2611.2,2610.8,3.83023]
[1724339594720,4.37965,2611.2,2610.8,3.83023]
[1724339595031,2.2839,2611.1,2610.8,3.83023]
[1724339597525,2.2839,2611.1,2610.8,7.6604]
[1724339597724,2.2797,2611.4,2610.8,0.76604]
[1724339597979,2.2797,2611.4,2611.0,3.82986]
[1724339598477,6.10907,2611.4,2611.0,3.82986]
[1724339598796,6.10907,2611.4,2610.9,3.82999]
[1724339598983,2.2797,2611.4,2611.0,3.82994]
[1724339599774,6.10909,2611.4,2610.8,3.83009]
[1724339599921,2.2797,2611.4,2610.8,4.49522868]
[1724339600120,2.2797,2611.4,2611.0,3.8298]
[1724339600417,2.2797,2611.4,2611.1,3.82973]
[1724339600652,6.10913,2611.4,2610.9,3.82995]
[1724339601139,3.82965,2611.2,2610.7,3.83033]
[1724339601775,3.82965,2611.2,2610.8,3.83024]
[1724339601982,6.10913,2611.4,2610.9,3.83005]
[1724339602115,0.55,2611.3,2610.9,3.83]
[1724339602445,2.2797,2611.4,2611.1,3.82969]
[1724339602618,2.2797,2611.4,2611.3,3.82951]
[1724339602823,3.82879,2611.8,2611.3,3.82942]
[1724339603672,3.82879,2611.8,2611.3,7.65884]
[1724339603889,3.82879,2611.8,2611.3,3.82942]
[1724339604219,3.82899,2611.7,2611.1,3.82968]
[1724339604418,3.82899,2611.7,2611.2,3.82964]
[1724339604815,3.82899,2611.7,2611.1,3.82968]
[1724339604816,2.31,2611.5,2611.1,3.82968]
[1724339605223,6.13922,2611.5,2610.9,3.82995]
[1724339606294,2.31,2611.1,2610.7,3.8303]
[1724339606441,2.31,2611.1,2610.7,3.83027]
[1724339606622,2.449,2611.3,2610.9,3.83009]
[1724339606824,2.449,2611.3,2611.1,3.82967]
[1724339607037,2.4136,2611.5,2611.1,3.82967]
[1724339607240,2.4136,2611.5,2611.2,3.82957]
[1724339607620,6.24253,2611.7,2611.3,3.82949]
[1724339607843,0.55,2611.6,2611.3,3.82949]
[1724339608140,0.55,2611.6,2611.1,7.65937]
[1724339608363,0.55,2611.6,2611.1,3.82967]
[1724339608559,4.37907,2611.6,2611.1,3.82967]
[1724339608794,0.55,2611.6,2611.1,7.65939]
[1724339609084,4.37907,2611.6,2611.1,3.82967]
[1724339610281,4.37907,2611.6,2611.2,3.82964]
[1724339610482,0.55,2611.6,2611.2,3.82964]
[1724339612095,0.55,2611.6,2611.1,3.82967]
[1724339612451,0.55,2611.6,2611.1,7.65939]
[1724339612991,0.55,2611.6,2611.1,3.82967]
[1724339613338,0.55,2611.6,2611.3,3.8295]
[1724339614150,14.338,2612.4,2611.5,3.82907]
[1724339614151,2.4334,2612.0,2611.5,3.82907]
[1724339614353,2.4334,2612.0,2611.6,3.82899]
[1724339615159,3.8287,2611.9,2611.4,7.65854]
[1724339615362,3.82881,2611.8,2611.4,3.82926]
[1724339615942,7.65744,2611.9,2611.4,3.82926]
[1724339616391,3.8287,2611.9,2611.4,3.82926]
[1724339617577,7.65743,2611.9,2611.4,3.82926]
[1724339617754,3.8287,2611.9,2611.4,3.82926]
[1724339617932,7.65743,2611.9,2611.4,3.82926]
[1724339618390,11.338,2612.4,2611.0,2.4993]
[1724339618391,6.15404,2611.6,2611.1,3.8298]
[1724339618598,3.82922,2611.5,2611.1,3.8298]
[1724339618792,3.82922,2611.5,2610.9,3.82997]
[1724339618971,3.82922,2611.5,2610.6,2.3703]
[1724339618972,3.82922,2611.5,2611.0,3.82987]
[1724339619340,2.4566,2611.3,2610.6,3.83039]
[1724339619534,3.82974,2611.2,2610.6,3.83039]
[1724339620283,6.28623,2611.3,2610.8,3.83022]
[1724339620482,2.4566,2611.3,2610.9,3.82997]
[1724339620839,2.4566,2611.3,2611.0,3.82993]
[1724339621580,2.4566,2611.3,2611.0,7.65986]
[1724339621783,9.6599,2611.5,2611.0,3.82993]
[1724339621966,0.55,2611.4,2611.0,3.82986]
[1724339622346,0.55,2611.4,2611.1,3.82979]
[1724339622543,0.55,2611.4,2611.0,3.82986]
[1724339622772,0.55,2611.4,2611.0,7.65972]
[1724339623166,0.55,2611.4,2611.0,3.82986]
[1724339623707,9.6599,2611.5,2611.2,3.82957]
[1724339623917,2.2699,2611.5,2611.2,3.82957]
[1724339625710,2.2699,2611.5,2610.9,3.83]
[1724339626304,3.82943,2611.4,2610.8,7.6603]
[1724339626692,3.82943,2611.4,2610.9,3.83009]
[1724339627005,3.82951,2611.3,2610.8,7.6603]
[1724339627207,2.425,2611.2,2610.8,3.83015]
[1724339627909,3.82981,2611.1,2610.6,3.83043]
[1724339629307,6.25465,2611.2,2610.6,3.83043]
[1724339629491,6.25465,2611.2,2610.7,3.83031]
[1724339630423,2.425,2611.2,2610.9,3.83002]
[1724339630821,13.71151,2611.5,2611.0,3.82993]
[1724339631126,13.71144,2611.5,2611.0,3.82993]
[1724339631422,13.71144,2611.5,2611.0,3.82987]
[1724339632821,3.82938,2611.4,2610.9,3.83008]
[1724339633121,7.65886,2611.4,2610.9,4.86894405]
[1724339633329,3.82938,2611.4,2610.9,3.83008]
[1724339634007,3.82938,2611.4,2610.9,7.66009]
[1724339634611,9.8822,2611.5,2611.0,3.82994]
[1724339634930,13.71146,2611.5,2611.0,3.82994]
[1724339635130,13.71146,2611.5,2610.9,3.83001]
[1724339635344,13.71146,2611.5,2610.9,4.6831036]
[1724339635925,13.71022734,2611.5,2610.9,4.6831036]
[1724339636648,9.88096734,2611.5,2610.7,4.70092604]
[1724339636803,3.82974,2611.2,2610.7,3.83029]
[1724339637442,6.70216,2611.4,2610.8,3.83021]
[1724339637443,10.53166,2611.4,2610.8,3.83021]
[1724339637644,6.70216,2611.4,2610.8,3.83021]
[1724339637829,6.70216,2611.4,2610.9,3.83]
[1724339637830,2.3227,2611.4,2610.9,3.83]
[1724339638007,2.3227,2611.4,2611.1,3.82978]
[1724339638203,6.15214,2611.4,2610.7,2.65850288]
[1724339638527,3.82952,2611.3,2610.8,3.83016]
[1724339639947,3.82967,2611.2,2610.8,3.83016]
[1724339640104,3.8299,2611.1,2610.6,3.83043]
[1724339640304,2.3231,2611.0,2610.6,3.83043]
[1724339640504,2.3231,2611.0,2610.6,4.596545]
[1724339640743,2.3231,2611.0,2610.7,3.83038]
[1724339640899,3.82967,2611.2,2610.8,3.83023]
[1724339641731,2.3433,2611.3,2610.8,3.83023]
[1724339641913,0.55,2611.2,2610.8,3.83023]
[1724339643939,0.55,2611.2,2610.8,3.83016]
[1724339644668,0.55,2611.2,2610.8,7.66033]
[1724339644825,0.55,2611.2,2610.8,3.83016]
[1724339645409,4.37968,2611.2,2610.8,3.83016]
[1724339647363,0.55,2611.2,2610.8,3.83016]
[1724339647523,0.55,2611.2,2610.9,3.83002]
[1724339648846,0.55,2611.2,2610.8,4.32968402]
[1724339649076,9.69336734,2611.5,2610.8,2.85933402]
[1724339649274,9.69336734,2611.5,2611.1,3.8297]
[1724339650855,9.69336734,2611.5,2610.8,2.85933402]
[1724339650856,3.82972,2611.2,2610.8,3.83024]
[1724339652283,3.82951,2611.3,2610.8,7.6604]
[1724339652478,0.55,2611.2,2610.8,7.66032]
[1724339652901,0.55,2611.2,2610.8,3.83016]
[1724339653065,0.55,2611.2,2610.8,3.83014]
[1724339654169,3.82936,2611.4,2610.9,3.83001]
[1724339654170,0.55,2611.3,2610.9,3.83001]
[1724339654587,4.37951,2611.3,2610.8,3.83023]
[1724339654796,0.55,2611.3,2611.0,3.82994]
[1724339654984,0.55,2611.4,2611.0,3.82994]
[1724339655190,0.55,2611.4,2611.0,3.82987]
[1724339655390,0.55,2611.4,2611.1,3.82979]
[1724339655604,0.55,2611.4,2611.0,3.82987]
[1724339655759,9.69336734,2611.5,2611.2,7.65915]
[1724339655962,6.0935,2611.7,2611.2,3.82956]
[1724339656163,9.92253,2611.7,2611.2,3.82956]
[1724339656361,2.2645,2611.7,2611.0,4.9212692]
[1724339656678,3.82954,2611.3,2610.8,3.83015]
[1724339656872,3.82954,2611.3,2610.9,3.83008]
[1724339657479,3.82954,2611.3,2610.7,4.22806852]
[1724339657810,2.4048,2611.1,2610.7,4.22806852]
[1724339658314,2.4048,2611.1,2610.7,4.22805852]
[1724339659187,2.4048,2611.1,2610.7,8.05834852]
[1724339659500,6.11211,2611.3,2610.9,3.83004]
[1724339660193,4.37966,2611.2,2610.7,4.22806852]
[1724339660989,4.37966,2611.2,2610.7,7.66063]
[1724339661199,4.37966,2611.2,2610.7,3.83031]
[1724339661399,0.55,2611.2,2610.8,3.83024]
[1724339662143,2.2826,2611.3,2610.9,3.83001]
[1724339662443,2.2826,2611.3,2611.0,0.383001]
[1724339662585,6.11218,2611.3,2610.8,3.83018]
[1724339662984,3.82965,2611.2,2610.7,9.929771]
[1724339663626,2.2826,2611.3,2610.8,3.83016]
[1724339663830,6.11213,2611.3,2610.8,3.83016]
[1724339665639,6.11213,2611.3,2610.7,3.83038]
[1724339665640,3.8299,2611.1,2610.7,3.83038]
[1724339665854,4.37966,2611.2,2610.7,7.66069]
[1724339666155,4.37966,2611.2,2610.7,5.27814541]
[1724339666356,3.82981,2611.1,2610.7,5.27814541]
[1724339666494,3.82981,2611.1,2610.7,3.83031]
[1724339667738,4.37967,2611.2,2610.7,3.83031]
[1724339667957,4.37967,2611.2,2610.7,7.66062]
[1724339668152,4.37967,2611.2,2610.7,3.83031]
[1724339668806,4.37967,2611.2,2610.7,7.66059]
[1724339669351,4.37967,2611.2,2610.7,3.83028]
[1724339670066,0.55,2611.2,2610.8,3.83016]
[1724339670214,7.38876734,2611.5,2611.3,3.82949]
[1724339670569,7.38876734,2611.5,2611.3,3.82942]
[1724339670848,7.38876734,2611.5,2611.4,3.82936]
[1724339671254,5.47748,2612.0,2611.5,7.65831]
[1724339671255,11.21724734,2612.0,2611.5,7.65831]
[1724339671421,7.38876734,2612.0,2611.5,3.82912]
[1724339672017,7.38876734,2612.0,2611.5,3.8291]
[1724339672258,7.38876734,2612.0,2611.7,9.30673]
[1724339672458,7.38876734,2612.0,2611.7,3.82882]
[1724339674963,7.38876734,2612.0,2611.8,3.82876]
[1724339675182,13.54162734,2612.4,2611.8,3.82876]
[1724339675406,9.71366734,2612.4,2611.9,3.82861]
[1724339675670,9.71366734,2612.4,2611.9,3.82854]
[1724339676466,13.54157734,2612.4,2611.9,3.82854]
[1724339677483,9.71366734,2612.4,2612.0,3.82847]
[1724339677664,7.38876734,2612.4,2612.2,3.8281]
[1724339677871,7.38876734,2612.4,2611.9,0.99985]
[1724339677872,3.82718,2612.9,2612.4,6.22217]
[1724339678166,3.82718,2612.9,2612.4,2.3943]
[1724339678386,3.82718,2612.9,2612.4,3.399321]
[1724339678540,3.82718,2612.9,2612.4,7.227191]
[1724339679271,7.65443,2612.9,2612.4,1.005021]
[1724339679574,10.04283,2612.9,2612.3,3.82794]
[1724339679749,6.21558,2612.9,2612.2,3.82811]
[1724339679955,3.82746,2612.7,2612.2,3.82811]
[1724339680148,3.82746,2612.7,2612.1,6.22261]
[1724339680355,3.82746,2612.7,2612.1,3.82831]
[1724339681102,3.82787,2612.5,2612.0,3.82839]
[1724339682793,10.04376,2612.6,2612.0,3.82839]
[1724339682995,0.55,2612.5,2612.0,3.82839]
[1724339683352,0.55,2612.5,2612.0,7.65679]
[1724339683764,0.55,2612.5,2612.0,7.65678]
[1724339683986,0.55,2612.5,2612.1,3.8283]
[1724339685714,0.55,2612.5,2612.0,1.165663]
[1724339685877,3.8279,2612.4,2611.9,3.82849]
[1724339686285,0.55,2612.5,2612.0,3.82846]
[1724339686482,0.55,2612.5,2612.0,7.65677]
[1724339686723,0.55,2612.5,2612.0,7.65678]
[1724339686913,0.55,2612.5,2612.1,3.82832]
[1724339688099,4.3778,2612.5,2611.9,3.82848]
[1724339688268,3.8279,2612.4,2611.9,3.82848]
[1724339688471,3.82842,2612.1,2611.4,6.26772]
[1724339688675,3.82842,2612.1,2611.6,3.82906]
[1724339688874,0.55,2612.0,2611.6,3.82898]
[1724339689259,0.55,2612.0,2611.8,3.82877]
[1724339689532,0.55,2612.1,2611.7,3.82891]
[1724339690033,0.55,2612.1,2611.8,3.82872]
[1724339690209,11.21661734,2612.5,2611.9,3.82862]
[1724339690210,2.3753,2612.4,2611.9,3.82862]
[1724339690561,2.3753,2612.4,2611.7,3.82878]
[1724339690730,3.82827,2612.2,2611.7,7.65758]
[1724339690940,3.82827,2612.2,2611.7,3.82878]
[1724339692773,3.82827,2612.2,2611.7,7.65763]
[1724339692991,0.55,2612.3,2611.8,3.82876]
[1724339693268,4.37813,2612.3,2611.7,4.6572178]
[1724339693807,4.37813,2612.3,2611.8,3.82877]
[1724339693969,3.82819,2612.2,2611.7,3.82878]
[1724339694426,3.82835,2612.1,2611.7,3.82878]
[1724339694631,3.82819,2612.2,2611.7,3.82878]
[1724339694838,3.82819,2612.2,2611.7,4.594569]
[1724339695606,7.65648,2612.2,2611.7,4.594569]
[1724339695990,3.82834,2612.1,2611.7,4.594569]
[1724339697391,3.82871,2611.9,2611.4,2.4385]